bitfinex/quotes_BTCUSD_20250225
["timestamp","ask_amount","ask_price","bid_price","bid_amount"]
[1740495413267,0.1361,87623.0,87618.0,0.085]
[1740495413477,0.471185,87624.0,87623.0,0.055]
[1740495413651,0.171211,87611.0,87610.0,0.1449]
[1740495413964,0.28495853,87611.0,87610.0,0.1449]
[1740495414393,0.228284,87610.0,87607.0,0.055]
[1740495414521,0.66989153,87611.0,87588.0,0.0899]
[1740495414522,0.228292,87607.0,87588.0,0.0899]
[1740495414724,0.3,87605.0,87590.0,0.055]
[1740495414927,0.171262,87585.0,87584.0,0.0475]
[1740495415130,0.17127,87581.0,87580.0,0.055]
[1740495415357,0.171299,87566.0,87565.0,0.1374]
[1740495415691,0.171299,87566.0,87565.0,0.055]
[1740495415692,0.28504653,87566.0,87565.0,0.055]
[1740495415908,0.11374753,87566.0,87565.0,0.055]
[1740495416099,0.28504653,87566.0,87565.0,0.055]
[1740495416313,0.11374753,87566.0,87565.0,0.055]
[1740495417024,0.11374753,87566.0,87564.0,0.0899]
[1740495417025,0.32786,87581.0,87577.0,0.055]
[1740495417188,0.49913,87581.0,87577.0,0.055]
[1740495417399,0.32786,87581.0,87577.0,0.055]
[1740495417835,0.32786,87581.0,87577.0,0.1449]
[1740495418063,0.307375,87578.0,87577.0,0.1449]
[1740495418285,0.42112253,87578.0,87577.0,0.055]
[1740495418500,0.24984753,87578.0,87577.0,0.055]
[1740495418720,0.24984753,87578.0,87577.0,0.1449]
[1740495419170,0.42112253,87578.0,87577.0,0.055]
[1740495419604,0.24984753,87578.0,87577.0,0.1449]
[1740495419822,0.46396,87612.0,87587.0,0.0899]
[1740495420045,0.28498553,87597.0,87592.0,0.055]
[1740495420263,0.1361,87611.0,87573.0,0.0805]
[1740495420264,0.205538,87612.0,87611.0,0.055]
[1740495420492,0.32786,87623.0,87614.0,0.055]
[1740495420731,0.171211,87611.0,87610.0,0.055]
[1740495420961,0.57770753,87611.0,87580.0,0.048]
[1740495421200,0.3,87600.0,87592.0,0.055]
[1740495421434,0.171223,87605.0,87604.0,0.055]
[1740495421680,0.171223,87605.0,87580.0,0.048]
[1740495421681,0.46396,87627.0,87618.0,0.055]
[1740495421925,0.44160753,87627.0,87625.0,0.055]
[1740495422167,0.171191,87621.0,87620.0,0.103]
[1740495422385,0.49904,87627.0,87626.0,0.055]
[1740495423220,0.61278753,87627.0,87626.0,0.055]
[1740495423413,0.171182,87626.0,87625.0,0.055]
[1740495423612,0.28492953,87626.0,87625.0,0.055]
[1740495423794,0.52825,87623.0,87611.0,0.055]
[1740495424112,0.171209,87612.0,87611.0,0.055]
[1740495424332,0.635142,87626.0,87625.0,0.055]
[1740495424540,0.3,87625.0,87609.0,0.055]
[1740495424712,0.171232,87600.0,87599.0,0.0473]
[1740495424911,0.171232,87600.0,87551.0,0.1]
[1740495424912,0.471275,87578.0,87577.0,0.0558481]
[1740495425261,0.91288253,87578.0,87577.0,1e-07]
[1740495425925,1.04898253,87578.0,87577.0,1e-07]
[1740495426508,1.14483118,87578.0,87577.0,1e-07]
[1740495426710,1.04898253,87578.0,87577.0,1e-07]
[1740495427126,0.44160753,87578.0,87577.0,0.0550001]
[1740495427328,0.32786,87578.0,87577.0,0.0550001]
[1740495427529,0.499104,87594.0,87593.0,0.055]
[1740495427753,0.11374753,87594.0,87593.0,0.1449]
[1740495428016,0.171203,87615.0,87614.0,0.055]
[1740495428321,0.171246,87593.0,87592.0,0.0472]
[1740495428549,0.799146,87593.0,87592.0,0.0472]
[1740495428768,0.171271,87580.0,87579.0,0.2204]
[1740495428944,0.171254,87589.0,87588.0,0.1449]
[1740495429198,0.28500153,87589.0,87588.0,0.055]
[1740495429414,0.57774753,87589.0,87577.0,0.0100001]
[1740495429644,0.471315,87558.0,87554.0,0.055]
[1740495429859,0.171328,87551.0,87550.0,1e-06]
[1740495430069,0.171328,87551.0,87540.0,0.0025278]
[1740495430070,0.471348,87541.0,87540.0,0.0025278]
[1740495430286,0.58509553,87541.0,87540.0,0.0025278]
[1740495431175,0.471352,87539.0,87538.0,9e-07]
[1740495431394,1.04909953,87539.0,87538.0,9e-07]
[1740495431612,1.04909953,87539.0,87538.0,0.0550009]
[1740495431834,0.034355,87547.0,87546.0,0.055]
[1740495432044,0.14810253,87547.0,87546.0,0.055]
[1740495432258,0.034355,87547.0,87546.0,0.1022]
[1740495432479,0.31943853,87547.0,87546.0,0.0472]
[1740495432718,0.28508353,87547.0,87546.0,0.1022]
[1740495432879,0.47132,87555.0,87554.0,0.055]
[1740495433059,0.171336,87547.0,87546.0,0.1022]
[1740495433253,0.171348,87541.0,87540.0,0.0008487]
[1740495433454,0.28509553,87541.0,87540.0,0.1457487]
[1740495433675,0.11374753,87541.0,87540.0,0.1457487]
[1740495434020,0.28509553,87541.0,87540.0,0.1457487]
[1740495434283,0.3279,87546.0,87545.0,0.1449]
[1740495434488,0.0101,87593.0,87540.0,0.0008487]
[1740495434489,0.499197,87567.0,87566.0,0.055]
[1740495434814,0.01572,87585.0,87560.0,0.0899]
[1740495434815,0.171268,87582.0,87560.0,0.0899]
[1740495434995,0.171268,87582.0,87540.0,0.00244769]
[1740495434996,0.0186988,87582.0,87568.0,0.0472]
[1740495435225,0.01454085,87553.0,87540.0,0.0008487]
[1740495435399,0.3,87540.0,87524.0,0.0472]
[1740495435599,0.464,87540.0,87532.0,0.0899]
[1740495435799,0.464,87567.0,87549.0,0.0899]
[1740495435943,0.464,87566.0,87537.0,0.0899]
[1740495436144,0.01454085,87563.0,87531.0,0.0899]
[1740495436346,0.11374753,87543.0,87537.0,0.0899]
[1740495436569,0.901443,87575.0,87541.0,0.0899]
[1740495436570,0.3279,87542.0,87541.0,0.0899]
[1740495436771,0.44164753,87542.0,87540.0,0.0899]
[1740495436973,0.11374753,87541.0,87540.0,0.0899]
[1740495437189,0.3279,87542.0,87541.0,0.0899]
[1740495437386,0.3279,87566.0,87558.0,0.0899]
[1740495437587,0.1361,87573.0,87561.0,0.0899]
[1740495437588,0.11374753,87565.0,87561.0,0.0899]
[1740495437764,0.3279,87572.0,87571.0,0.0899]
[1740495437963,0.171301,87565.0,87564.0,0.0454]
[1740495438166,0.171301,87565.0,87542.0,0.0454]
[1740495438167,0.228406,87563.0,87542.0,0.0454]
[1740495438365,0.171313,87559.0,87558.0,0.0899]
[1740495438569,0.28506053,87559.0,87558.0,0.0899]
[1740495438776,0.171328,87551.0,87550.0,4e-05]
[1740495438978,0.64789333,87551.0,87550.0,4e-05]
[1740495439602,0.58507553,87551.0,87550.0,4e-05]
[1740495439779,0.28507553,87551.0,87550.0,4e-05]
[1740495440434,0.464,87569.0,87562.0,0.0899]
[1740495440641,0.464,87569.0,87560.0,0.0899]
[1740495440642,0.228414,87561.0,87560.0,0.0899]
[1740495440850,0.3279,87576.0,87575.0,0.0899]
[1740495441089,0.28501353,87583.0,87582.0,0.0899]
[1740495441282,0.11374753,87583.0,87561.0,0.0899]
[1740495441481,0.171274,87579.0,87570.0,0.0899]
[1740495441684,0.171274,87579.0,87574.0,0.0899]
[1740495441933,0.1361,87582.0,87574.0,0.0899]
[1740495442134,0.034337,87592.0,87582.0,0.0456]
[1740495442352,0.1361,87615.0,87585.0,0.0899]
[1740495442589,0.3279,87614.0,87612.0,0.0899]
[1740495442760,0.3279,87618.0,87613.0,0.0899]
[1740495442960,0.0016974,87627.0,87624.0,0.0899]
[1740495442961,0.171185,87625.0,87624.0,0.0899]
[1740495443280,0.11374753,87625.0,87623.0,0.0899]
[1740495443440,0.0016974,87627.0,87626.0,0.0899]
[1740495443797,0.28662493,87627.0,87626.0,0.0899]
[1740495444021,0.29833327,87627.0,87626.0,0.0399]
[1740495444308,0.12715327,87627.0,87626.0,0.0399]
[1740495444549,0.0016974,87627.0,87626.0,0.0399]
[1740495445262,0.3279,87653.0,87626.0,0.0399]
[1740495445491,0.11374753,87652.0,87641.0,0.0399]
[1740495445723,0.42474406,87655.0,87646.0,0.0399]
[1740495445724,0.11374753,87650.0,87646.0,0.0399]
[1740495445940,0.11374753,87651.0,87650.0,0.0399]
[1740495446513,0.09684406,87655.0,87654.0,0.0399]
[1740495447372,0.38171659,87655.0,87654.0,0.0399]
[1740495447586,0.38171659,87655.0,87646.0,0.1223]
[1740495447587,0.171141,87647.0,87646.0,0.1223]
[1740495447786,0.09684406,87655.0,87654.0,0.0399]
[1740495448013,0.171176,87629.0,87628.0,0.00159729]
[1740495448226,0.171191,87621.0,87610.0,0.0794]
[1740495448453,0.171191,87621.0,87620.0,0.04888119]
[1740495448676,0.03432,87633.0,87620.0,0.04888119]
[1740495448891,0.171191,87621.0,87620.0,0.04888119]
[1740495449100,0.171191,87621.0,87612.0,0.0399]
[1740495449101,0.171207,87613.0,87612.0,0.0399]
[1740495449394,0.47123,87601.0,87600.0,4e-05]
[1740495449609,1.06473753,87601.0,87600.0,4e-05]
[1740495449820,1.09975763,87601.0,87600.0,4e-05]
[1740495450053,2.47871459,87601.0,87600.0,4e-05]
[1740495450274,0.171328,87551.0,87543.0,0.0805]
[1740495450494,0.28507553,87551.0,87543.0,0.0805]
[1740495450713,0.42117553,87551.0,87543.0,0.0805]
[1740495450915,0.42117553,87551.0,87527.0,0.0781]
[1740495451138,0.42117553,87551.0,87538.0,0.040749]
[1740495451364,0.42117553,87551.0,87538.0,0.000849]
[1740495451587,0.42117553,87551.0,87545.0,0.0399]
[1740495451808,0.42117553,87551.0,87538.0,0.000849]
[1740495452248,0.42117553,87551.0,87541.0,0.0399]
[1740495452477,0.42117553,87551.0,87542.0,0.0399]
[1740495452958,0.45552853,87551.0,87542.0,0.0399]
[1740495453970,0.75552853,87551.0,87538.0,0.000849]
[1740495454475,0.77006938,87551.0,87538.0,0.000849]
[1740495454877,0.77006938,87551.0,87508.0,0.0809]
[1740495454878,0.17141,87509.0,87508.0,0.0809]
[1740495455083,0.17141,87509.0,87502.0,0.046]
[1740495455084,0.171422,87503.0,87502.0,0.0859]
[1740495455302,0.28516953,87503.0,87502.0,0.0859]
[1740495455456,0.11374753,87503.0,87502.0,0.0859]
[1740495456029,0.034364,87512.0,87511.0,0.0399]
[1740495456366,0.11374753,87512.0,87511.0,0.0399]
[1740495457227,0.171422,87503.0,87502.0,0.046]
[1740495457429,0.11374753,87503.0,87502.0,0.0859]
[1740495457884,0.034362,87530.0,87527.0,0.0399]
[1740495458086,0.1361,87541.0,87536.0,0.0399]
[1740495458239,0.18132,87558.0,87548.0,0.0399]
[1740495458438,0.24984753,87557.0,87537.0,0.0816]
[1740495458641,0.28419353,87557.0,87538.0,0.045]
[1740495458842,0.17135,87540.0,87539.0,0.0399]
[1740495459066,0.17136,87535.0,87523.0,0.0399]
[1740495459304,0.171387,87521.0,87520.0,0.1206]
[1740495459917,0.171369,87530.0,87529.0,0.0399]
[1740495460145,0.635369,87530.0,87529.0,0.0399]
[1740495460474,0.57774753,87530.0,87529.0,0.0399]
[1740495460673,0.74911653,87530.0,87529.0,0.0399]
[1740495461100,0.57774753,87530.0,87529.0,0.0399]
[1740495461483,0.45189332,87530.0,87529.0,0.0399]
[1740495461705,0.171318,87556.0,87555.0,0.0399]
[1740495461877,0.28506553,87556.0,87555.0,0.0399]
[1740495462054,0.171324,87554.0,87551.0,0.0399]
[1740495462236,0.11374753,87553.0,87552.0,0.0399]
[1740495462646,0.17133,87550.0,87549.0,0.0399]
[1740495462999,0.171364,87533.0,87520.0,0.0807]
[1740495463130,0.399786,87547.0,87546.0,0.0399]
[1740495463333,0.11374753,87547.0,87520.0,0.0807]
[1740495463536,0.228471,87539.0,87536.0,0.0399]
[1740495463741,0.171356,87537.0,87536.0,0.0399]
[1740495463978,0.28510353,87537.0,87536.0,0.0399]
[1740495464183,0.171375,87527.0,87526.0,0.0399]
[1740495464343,0.28512253,87527.0,87526.0,0.0399]
[1740495464590,0.11374753,87527.0,87526.0,0.0399]
[1740495464748,0.171381,87524.0,87523.0,0.0399]
[1740495465012,0.171387,87521.0,87520.0,0.0807]
[1740495465214,0.31579332,87524.0,87523.0,0.0399]
[1740495465611,0.42954085,87524.0,87523.0,0.0399]
[1740495465950,0.31579332,87524.0,87523.0,0.0399]
[1740495466149,0.31579332,87524.0,87523.0,0.211283]
[1740495466357,0.31579332,87553.0,87545.0,0.0399]
[1740495466617,0.01544,87555.0,87536.0,0.0399]
[1740495466618,0.034351,87542.0,87536.0,0.0399]
[1740495466830,0.11374753,87541.0,87540.0,0.0399]
[1740495467144,0.43979332,87552.0,87551.0,0.0399]
[1740495467477,0.43979332,87552.0,87520.0,0.0807]
[1740495467478,0.171352,87539.0,87538.0,0.0399]
[1740495467703,0.55354085,87539.0,87536.0,0.0399]
[1740495467877,0.42950085,87539.0,87538.0,0.0399]
[1740495468198,0.31579332,87539.0,87538.0,0.0399]
[1740495468892,0.31579332,87568.0,87567.0,0.0399]
[1740495469036,0.31579332,87568.0,87567.0,0.1176]
[1740495469240,0.60080485,87584.0,87583.0,0.0399]
[1740495469465,0.42954085,87584.0,87583.0,0.0399]
[1740495469667,0.60080485,87584.0,87583.0,0.0399]
[1740495469877,0.42954085,87584.0,87567.0,0.0777]
[1740495470252,0.55354085,87584.0,87583.0,0.0399]
[1740495470471,0.72480485,87584.0,87583.0,0.0399]
[1740495470670,0.17127,87581.0,87580.0,0.0399]
[1740495470849,0.171279,87576.0,87575.0,0.0399]
[1740495471068,0.01454085,87574.0,87549.0,0.0798]
[1740495471269,0.18587085,87550.0,87549.0,0.0399]
[1740495471452,0.5680817,87550.0,87549.0,0.0399]
[1740495471630,0.72487085,87550.0,87549.0,0.0399]
[1740495471836,0.11374753,87550.0,87549.0,0.0399]
[1740495472054,0.034349,87550.0,87549.0,0.0399]
[1740495472309,0.18136,87588.0,87562.0,0.0399]
[1740495472551,0.228403,87565.0,87562.0,0.0399]
[1740495472762,0.11374753,87564.0,87563.0,0.0399]
[1740495473011,0.01524,87600.0,87577.0,0.0399]
[1740495473249,0.11374753,87582.0,87571.0,0.0399]
[1740495473490,0.01454085,87576.0,87570.0,0.0399]
[1740495473730,0.171289,87571.0,87570.0,0.0399]
[1740495473963,0.11374753,87571.0,87569.0,0.0399]
[1740495474168,0.11374753,87570.0,87569.0,0.0399]
[1740495474827,0.034339,87587.0,87578.0,0.0399]
[1740495475066,0.11374753,87586.0,87577.0,0.0399]
[1740495475292,0.228279,87612.0,87586.0,0.0399]
[1740495475514,0.228283,87611.0,87600.0,0.0399]
[1740495475746,0.228282,87611.0,87600.0,0.0399]
[1740495476030,0.034326,87612.0,87600.0,0.211132]
[1740495476269,0.228229,87632.0,87600.0,0.0399]
[1740495476529,0.11544433,87601.0,87600.0,0.0399]
[1740495477463,0.11544433,87601.0,87594.0,0.0399]
[1740495477663,0.11374753,87600.0,87594.0,0.0399]
[1740495477898,0.17124,87597.0,87594.0,0.0399]
[1740495478131,0.171242,87595.0,87594.0,0.0399]
[1740495478331,0.171244,87594.0,87593.0,0.0399]
[1740495478532,0.28499153,87594.0,87593.0,0.0399]
[1740495478902,0.171258,87587.0,87586.0,0.0399]
[1740495479020,0.28500553,87587.0,87586.0,0.0399]
[1740495479221,0.01454085,87580.0,87577.0,0.0486]
[1740495479428,0.171277,87577.0,87576.0,0.0399]
[1740495479656,0.171315,87558.0,87557.0,0.0484]
[1740495479869,0.171324,87553.0,87552.0,0.0399]
[1740495480122,0.28507153,87553.0,87552.0,0.0399]
[1740495480265,0.11374753,87553.0,87552.0,0.0399]
[1740495481099,0.11374753,87553.0,87538.0,0.0484]
[1740495481326,0.28507353,87552.0,87551.0,0.0399]
[1740495481520,0.11374753,87552.0,87551.0,0.0399]
[1740495481897,0.18128,87588.0,87538.0,0.0484]
[1740495481898,0.015,87575.0,87561.0,0.0399]
[1740495482127,0.228396,87567.0,87561.0,0.0399]
[1740495482278,0.11374753,87566.0,87562.0,0.0399]
[1740495482496,0.11374753,87566.0,87564.0,0.0399]
[1740495482694,0.11374753,87566.0,87565.0,0.0399]
[1740495482883,0.01454085,87563.0,87552.0,0.0399]
[1740495483087,0.171338,87546.0,87545.0,0.0399]
[1740495483280,0.171338,87546.0,87494.0,0.00842233]
[1740495483281,0.171375,87527.0,87519.0,0.0483]
[1740495483493,0.171414,87507.0,87498.0,0.0825]
[1740495483715,0.171426,87501.0,87492.0,0.0008481]
[1740495483914,0.18596685,87501.0,87492.0,0.0008481]
[1740495484155,0.29971438,87501.0,87492.0,0.0008481]
[1740495484375,0.29971438,87501.0,87466.0,0.076]
[1740495484376,0.17145,87489.0,87488.0,2e-07]
[1740495484564,0.60019753,87489.0,87488.0,2e-07]
[1740495484771,0.61473838,87489.0,87488.0,2e-07]
[1740495485609,0.31469838,87489.0,87488.0,2e-07]
[1740495485813,0.28519753,87489.0,87488.0,2e-07]
[1740495486003,0.30015753,87489.0,87488.0,2e-07]
[1740495486756,0.11374753,87489.0,87488.0,2e-07]
[1740495488195,0.42828838,87489.0,87488.0,2e-07]
[1740495488400,0.53398052,87489.0,87488.0,2e-07]
[1740495488918,0.31454085,87488.0,87461.0,0.0008484]
[1740495489126,0.17152,87453.0,87452.0,0.0141302]
[1740495489323,0.61472838,87453.0,87452.0,0.0141302]
[1740495489522,0.471524,87451.0,87450.0,2e-07]
[1740495489701,0.11374753,87451.0,87450.0,0.0399]
[1740495489916,0.01413,87453.0,87452.0,0.1688]
[1740495490276,0.24054457,87478.0,87475.0,0.0399]
[1740495490412,0.171475,87476.0,87475.0,0.0399]
[1740495490599,0.01528,87497.0,87487.0,0.0399]
[1740495490798,0.01528,87497.0,87489.0,0.0399]
[1740495491030,0.171448,87490.0,87489.0,0.0399]
[1740495491367,0.01524,87513.0,87495.0,0.0399]
[1740495491590,0.01524,87513.0,87452.0,0.2289]
[1740495491591,0.11374753,87496.0,87488.0,0.0399]
[1740495491734,0.11374753,87496.0,87481.0,0.3657122]
[1740495491735,0.171459,87484.0,87483.0,0.0399]
[1740495491958,0.171463,87482.0,87481.0,0.3657122]
[1740495492158,0.171454,87487.0,87486.0,0.0399]
[1740495492364,0.3,87518.0,87488.0,0.0399]
[1740495492585,0.17145,87489.0,87488.0,0.0399]
[1740495492793,0.171444,87492.0,87491.0,0.0399]
[1740495492993,0.28519153,87492.0,87491.0,0.0399]
[1740495493787,0.171448,87490.0,87489.0,0.0399]
[1740495493970,0.28519553,87490.0,87489.0,0.0399]
[1740495494179,0.28519553,87490.0,87463.0,0.3657122]
[1740495494180,0.171467,87480.0,87479.0,0.0399]
[1740495494379,0.28521453,87480.0,87479.0,0.0399]
[1740495494586,0.01454085,87479.0,87466.0,0.0399]
[1740495494808,0.01454085,87479.0,87452.0,0.0485]
[1740495494809,0.17152,87453.0,87452.0,0.0485]
[1740495495017,0.171554,87436.0,87435.0,0.0772]
[1740495495263,0.171554,87436.0,87398.0,0.00877789]
[1740495495264,0.171593,87416.0,87415.0,0.0399]
[1740495495465,0.13090293,87436.0,87426.0,0.0399]
[1740495495466,0.0152,87434.0,87426.0,0.0399]
[1740495495783,0.0152,87434.0,87430.0,0.0399]
[1740495495784,0.11374753,87433.0,87430.0,0.0399]
[1740495495996,0.171567,87429.0,87428.0,0.0399]
[1740495496197,0.171567,87429.0,87425.0,0.0399]
[1740495496198,0.228761,87428.0,87425.0,0.0399]
[1740495496406,0.11374753,87426.0,87410.0,0.048]
[1740495496614,0.28144,87453.0,87410.0,0.048]
[1740495496615,0.11374753,87411.0,87410.0,0.0879]
[1740495497017,0.228733,87438.0,87424.0,0.0399]
[1740495497268,0.11374753,87427.0,87422.0,0.0399]
[1740495497476,0.28532253,87425.0,87424.0,0.0399]
[1740495497680,0.11374753,87425.0,87424.0,0.0399]
[1740495497888,0.22866,87466.0,87439.0,0.0399]
[1740495498092,0.11374753,87453.0,87445.0,0.0399]
[1740495498302,0.19006223,87466.0,87431.0,0.0399]
[1740495498303,0.01454085,87445.0,87431.0,0.0399]
[1740495498518,0.171561,87432.0,87431.0,0.0399]
[1740495498685,0.01454085,87424.0,87420.0,0.0399]
[1740495498924,0.528754,87431.0,87418.0,0.0399]
[1740495499135,0.11374753,87427.0,87418.0,0.0399]
[1740495499346,0.171579,87423.0,87422.0,0.0399]
[1740495499564,0.171603,87411.0,87410.0,0.0879]
[1740495499809,0.171603,87411.0,87410.0,0.048]
[1740495499810,0.11374753,87411.0,87410.0,0.048]
[1740495500015,0.11374753,87411.0,87410.0,0.0879]
[1740495500213,0.01516,87433.0,87420.0,0.0399]
[1740495500214,0.171583,87421.0,87420.0,0.0399]
[1740495500349,0.11374753,87421.0,87420.0,0.0399]
[1740495500555,0.28533053,87421.0,87420.0,0.0399]
[1740495500752,0.11374753,87421.0,87420.0,0.0399]
[1740495500960,0.28533053,87421.0,87420.0,0.0399]
[1740495501157,0.171603,87411.0,87410.0,0.0879]
[1740495501357,0.28535053,87411.0,87410.0,0.048]
[1740495501556,0.28535053,87411.0,87410.0,0.0879]
[1740495501735,0.28535053,87411.0,87410.0,0.048]
[1740495502170,0.28535053,87411.0,87410.0,0.0879]
[1740495502381,0.11374753,87411.0,87410.0,0.0879]
[1740495502585,0.28535053,87411.0,87410.0,0.0879]
[1740495502986,0.11374753,87411.0,87410.0,0.0879]
[1740495503241,0.31388538,87411.0,87410.0,0.048]
[1740495503539,0.28535053,87411.0,87410.0,0.048]
[1740495503961,0.171614,87405.0,87404.0,0.00011]
[1740495504135,0.28536153,87405.0,87404.0,0.00011]
[1740495504524,0.171622,87401.0,87400.0,0.00066214]
[1740495504883,0.29991038,87401.0,87400.0,0.00066214]
[1740495505088,0.36072782,87401.0,87400.0,0.00066214]
[1740495505300,0.30040953,87401.0,87400.0,0.00066214]
[1740495505505,0.31495038,87401.0,87400.0,0.00066214]
[1740495505679,0.30040953,87401.0,87400.0,0.00066214]
[1740495506233,0.31495038,87401.0,87400.0,0.00066214]
[1740495506849,0.30040953,87401.0,87400.0,0.00066214]
[1740495507062,0.39822992,87401.0,87400.0,0.00066214]
[1740495507400,0.41277077,87401.0,87400.0,0.00066214]
[1740495507557,0.12878753,87401.0,87388.0,0.0399]
[1740495507776,0.171646,87389.0,87388.0,0.0399]
[1740495507975,0.28539353,87389.0,87388.0,0.0399]
[1740495508198,0.11374753,87389.0,87388.0,0.0399]
[1740495508361,0.28539353,87389.0,87388.0,0.0399]
[1740495508785,0.11374753,87389.0,87388.0,0.0399]
[1740495508989,0.015,87397.0,87396.0,0.0399]
[1740495509194,0.30037753,87397.0,87396.0,0.0399]
[1740495509394,0.171642,87391.0,87390.0,0.0399]
[1740495509596,0.11374753,87391.0,87390.0,0.0399]
[1740495509900,0.28538953,87391.0,87390.0,0.0399]
[1740495510089,0.11374753,87391.0,87390.0,0.0399]
[1740495510301,0.015,87397.0,87396.0,0.0399]
[1740495510497,0.18663,87397.0,87396.0,0.0399]
[1740495510658,0.015,87397.0,87396.0,0.0399]
[1740495510861,0.30037753,87397.0,87396.0,0.0399]
[1740495511318,0.01209516,87404.0,87403.0,0.0399]
[1740495511515,0.0166598,87453.0,87429.0,0.0399]
[1740495511717,0.11374753,87430.0,87404.0,0.36591292]
[1740495511932,0.28531253,87430.0,87429.0,0.0399]
[1740495512056,0.11374753,87430.0,87429.0,0.0399]
[1740495512887,0.171524,87451.0,87450.0,0.0399]
[1740495513090,0.11374753,87451.0,87450.0,0.0399]
[1740495513300,0.00866159,87471.0,87452.0,0.0399]
[1740495513497,0.01374882,87453.0,87452.0,0.0399]
[1740495515713,0.01454085,87452.0,87442.0,0.0399]
[1740495515915,0.171563,87431.0,87430.0,0.0872]
[1740495516119,0.29985138,87431.0,87430.0,0.0872]
[1740495516528,0.29985138,87431.0,87430.0,0.0473]
[1740495516676,0.29985138,87431.0,87422.0,0.0399]
[1740495516677,0.228754,87430.0,87422.0,0.0399]
[1740495516878,0.18614585,87410.0,87409.0,0.0898]
[1740495517108,0.11374753,87410.0,87409.0,0.0898]
[1740495517297,0.228736,87437.0,87425.0,0.0399]
[1740495517499,0.01454085,87422.0,87409.0,0.0499]
[1740495517700,0.18614585,87410.0,87409.0,0.0898]
[1740495517891,0.29989338,87410.0,87409.0,0.0898]
[1740495518096,0.29989338,87410.0,87397.0,0.0784]
[1740495518097,0.228817,87406.0,87402.0,0.0399]
[1740495518350,0.29990638,87403.0,87402.0,0.0399]
[1740495518552,0.18616485,87400.0,87395.0,0.0399]
[1740495518755,0.171644,87390.0,87389.0,0.0399]
[1740495518958,0.171644,87390.0,87372.0,0.00358379]
[1740495518959,0.171677,87373.0,87372.0,0.00358379]
[1740495519164,0.29996538,87373.0,87372.0,0.00358379]
[1740495519311,0.01454085,87372.0,87370.0,0.048]
[1740495519519,0.24346185,87367.0,87362.0,0.0399]
[1740495519848,0.18623385,87365.0,87364.0,0.040749]
[1740495520089,0.29998138,87365.0,87364.0,0.040749]
[1740495520224,0.11374753,87365.0,87364.0,0.040749]
[1740495520420,0.3,87414.0,87375.0,0.0399]
[1740495520669,0.171667,87378.0,87377.0,0.0399]
[1740495520872,0.29995538,87378.0,87377.0,0.0399]
[1740495521041,0.2289,87375.0,87371.0,0.0399]
[1740495521243,0.18623385,87365.0,87364.0,0.000849]
[1740495521581,0.29998138,87365.0,87364.0,0.040749]
[1740495521791,0.29998138,87365.0,87364.0,0.000849]
[1740495521964,0.29998138,87365.0,87364.0,0.040749]
[1740495522189,0.29998138,87365.0,87348.0,0.0455]
[1740495522190,0.31454085,87364.0,87350.0,0.01452672]
[1740495522380,0.3,87350.0,87332.0,0.09452672]
[1740495522579,0.3,87350.0,87329.0,0.0494]
[1740495522580,0.11374753,87335.0,87334.0,0.01452672]
[1740495522986,0.171762,87330.0,87329.0,0.06392672]
[1740495523161,0.30005038,87330.0,87329.0,0.06392672]
[1740495523359,0.30005038,87330.0,87329.0,0.0494]
[1740495523560,0.30005038,87330.0,87329.0,0.06392672]
[1740495523826,0.31473038,87330.0,87329.0,0.06392672]
[1740495524180,0.30005038,87330.0,87329.0,0.0494]
[1740495524391,0.30005038,87330.0,87329.0,0.06392672]
[1740495524729,0.01472,87340.0,87329.0,0.06392672]
[1740495524730,0.01472,87340.0,87339.0,0.01452672]
[1740495524915,0.171734,87344.0,87343.0,0.01452672]
[1740495525153,0.171726,87349.0,87348.0,0.01452672]
[1740495525372,0.01468,87363.0,87362.0,0.01452672]
[1740495525814,0.228878,87383.0,87364.0,0.01452672]
[1740495526034,0.228885,87381.0,87364.0,0.06102672]
[1740495526455,0.01468,87388.0,87364.0,0.06102672]
[1740495526668,0.13874753,87365.0,87364.0,0.06102672]
[1740495526878,0.38254058,87365.0,87364.0,0.06102672]
[1740495527004,0.171703,87360.0,87359.0,0.01452672]
[1740495527198,0.17173,87346.0,87345.0,0.06312672]
[1740495527461,0.11374753,87346.0,87345.0,0.06312672]
[1740495528181,0.30001838,87346.0,87345.0,0.06312672]
[1740495528585,0.30001838,87346.0,87345.0,0.0486]
[1740495528825,0.29997838,87346.0,87345.0,0.06312672]
[1740495529018,0.11370753,87346.0,87345.0,0.06312672]
[1740495529221,0.01454085,87354.0,87353.0,0.01452672]
[1740495529440,0.171701,87361.0,87360.0,0.01452672]
[1740495529591,0.21960857,87361.0,87360.0,0.01452672]
[1740495530211,0.171719,87352.0,87351.0,0.01452672]
[1740495530414,0.18627085,87346.0,87345.0,0.06312672]
[1740495530635,0.22062045,87346.0,87345.0,0.0486]
[1740495530838,0.22062045,87346.0,87345.0,0.06312672]
[1740495532146,0.124,87346.0,87345.0,0.06312672]
[1740495533134,0.124,87346.0,87345.0,0.06397702]
[1740495533324,0.3300796,87346.0,87345.0,0.06397702]
[1740495533776,0.72842551,87346.0,87345.0,0.0008503]
[1740495533984,0.65512045,87346.0,87345.0,0.0008503]
[1740495534415,0.48339045,87346.0,87345.0,0.0008503]
[1740495534625,0.65512045,87346.0,87345.0,0.0008503]
[1740495535022,0.95512045,87346.0,87345.0,0.0008503]
[1740495535583,0.96956045,87346.0,87345.0,0.0008503]
[1740495535792,1.08341741,87346.0,87345.0,3e-07]
[1740495536000,0.171795,87313.0,87312.0,0.0008499]
[1740495536191,0.01911315,87313.0,87312.0,0.01537662]
[1740495536430,0.124,87322.0,87321.0,0.01452672]
[1740495536635,0.124,87322.0,87321.0,0.01442672]
[1740495537067,0.31430093,87322.0,87321.0,0.01442672]
[1740495537287,0.171792,87315.0,87314.0,0.01442672]
[1740495537486,0.31430093,87322.0,87321.0,0.01442672]
[1740495537694,0.31430093,87322.0,87315.0,0.01442672]